Workbook

Sheet Padrão (hidden)
D2: Comparativo dos custos de soldagem
D18: DADOS INFORMADOS
D19: Dados da Junta | G19: Convencional | H19: H4R | I19: Unidade
D20: Ângulo do Chanfro | G20: 60 | H20: =G20 -> 60 | I20: °
D21: Espessura da chapa (e) | G21: 12.5 | H21: 12.5 | I21: mm
D22: Abertura da Raiz ( r) | G22: 3 | H22: 3 | I22: mm
D23: Face da raiz (g) | G23: 3 | H23: 3 | I23: mm
D24: Penetração (t) | G24: 2 | H24: 2 | I24: mm
D25: Reforço (h) | G25: 2 | H25: 2 | I25: mm
D27: DADOS DO ELETRODO
D28: Taxa de deposição | G28: 1.09 | H28: =G28 -> 1.09 | I28: Kg/h
D29: Peso por vareta | G29: =35.7/1000 -> 0.0357 | H29: =G29 -> 0.0357 | I29: Kg
D31: Custos informados | G31: Convencional | H31: H4R | I31: Unidade
D32: N. de soldadores: | G32: 5 | H32: =G32 -> 5
D33: Capacidade dos cochichos | G33: 2 | H33: 0 | I33: Kg
D34: Salário Soldador + encargos | G34: 4500 | H34: =G34 -> 4500 | I34: R$
D35: Salario controlador + encargos | G35: 3000 | H35: 0 | I35: R$
D36: Custo dos eletrodos R$/Kg | G36: 5 | H36: 7 | I36: R$
D37: Número de estufas | G37: 2 | H37: 0 | I37: Unid.
D38: Custos dos cochichos | G38: 79 | H38: 0 | I38: R$
D39: Custos das estufas | G39: 7695 | H39: 0 | I39: R$
D41: DADOS CALCULADOS
D42: Área | G42: =((((G21-G23)/10)^2*TAN(G20/PI()/2))/2)*2+G21/10*G22/10+((2*(G21/10-G23/10)+2*G24)*TAN(G20/2/PI())+G22/10)*PI()/4 -> 1.303583182 | H42: =G42 -> 1.303583182 | I42: cm2
D43: Comp | G43: 200 | H43: 200 | I43: m
D44: Volume | G44: =G43*G42*100 -> 26071.66364 | H44: 26071.66364 | I44: cm3
D45: dens. Aço | G45: 7.85 | H45: 7.85 | I45: g/cm3
D46: Eficiencia | G46: 70 | H46: 70 | I46: %
D47: Peso da solda | G47: =G45*G44/1000 -> 204.6625596 | H47: 204.6625596 | I47: Kg
D48: Consumo de eletrodos | G48: =G47/(G46/100) -> 292.3750851 | H48: 292.3750851 | I48: Kg
D49: Numero de varetas | G49: =G48/G29 -> 8189.778295 | H49: 8189.778295 | I49: Unid.
D50: Sobra de eletrodo | G50: 4 | H50: 4 | I50: cm
D51: Peso das sobras | G51: =G29/35*G50*G49 -> 33.41429544 | H51: 33.41429544 | I51: Kg
D52: Peso total de eletrodos | G52: =G51+G48 -> 325.7893806 | H52: 325.7893806 | I52: Kg
D53: Tempo de soldagem por soldador | G53: =G48/G28/G32 -> 53.64680461 | H53: =H48/H28/H32 -> 53.64680461 | I53: h
D54: Numero de recargas por soldador | G54: =G48/G32/G33 -> 29.23750851 | H54: 0
D55: Tempo médio para recargas (10 min) | G55: =G54*10/60 -> 4.872918086 | H55: =H54*10 -> 0 | I55: h
D56: Tempo líquido de soldagem por soldador | G56: =G53+G55 -> 58.5197227 | H56: =H53-H55 -> 53.64680461 | I56: h
G57: =G56/8 -> 7.314965337 | H57: =H56/8 -> 6.705850577 | I57: Dias
D58: Custo de mão de obra | G58: =(G34+G35)/30*G57 -> 1828.741334 | H58: =(H34+H35)/30*H57 -> 1005.877586 | I58: R$
D59: Custos para tratamento do eletrodo | E59: Secagem | G59: =5.6*2*G48/500*0.44 -> 2.881648839 | H59: 0 | I59: R$
E60: Manutenção | G60: =5.6*24*30*G48/500*0.44 -> 1037.393582 | H60: 0 | I60: R$
D61: Custo total para tratamento | G61: =SUM(G59:G60) -> 1040.275231 | H61: =SUM(H59:H60) -> 0 | I61: R$
D62: Numero de cochichos | G62: =G32 -> 5 | H62: 0 | I62: Unid.
D63: Custo das estufas | G63: =G39*G37 -> 15390 | H63: 0 | I63: R$
D64: Custo dos cochichos | G64: =G38*G62 -> 395 | H64: 0 | I64: R$
D65: Investimento em estufas e cochichos | G65: =G64+G63 -> 15785 | H65: 0 | I65: R$
D66: Amortização | G66: =G64*0.5/12+G63*0.25/12 -> 337.0833333 | H66: 0 | I66: R$
D67: Custos de energia para soldagem | G67: =(G48/G28*130*24*0.44)/1000 -> 368.2316669 | H67: =(H48/H28*110*24*0.44)/1000 -> 311.5806412 | I67: R$
D68: Custo total dos eletrodos | G68: =G36*G52 -> 1628.946903 | H68: =H36*H52 -> 2280.525664
D69: Custo total de soldagem | G69: =G58+G61+G67+G66+G68 -> 5203.278468 | H69: =H58+H61+H67+H68 -> 3597.983892 | I69: R$
D70: Economia | G70: =(G69-H69)/H69 -> 0.446165026
H72: 1374.109253

Sheet H4R (hidden)
D2: Comparativo dos custos de soldagem
D18: DADOS INFORMADOS
D19: Dados da Junta | G19: Convencional | H19: H4R | I19: Unidade
D20: Ângulo do Chanfro | G20: 60 | H20: =G20 -> 60 | I20: °
D21: Espessura da chapa (e) | G21: 12.5 | H21: 12.5 | I21: mm
D22: Abertura da Raiz ( r) | G22: 3 | H22: 3 | I22: mm
D23: Face da raiz (g) | G23: 3 | H23: 3 | I23: mm
D24: Penetração (t) | G24: 2 | H24: 2 | I24: mm
D25: Reforço (h) | G25: 2 | H25: 2 | I25: mm
D27: DADOS DO ELETRODO
D28: Taxa de deposição | G28: 1.09 | H28: =G28 -> 1.09 | I28: Kg/h
D29: Peso por vareta | G29: =35.7/1000 -> 0.0357 | H29: =G29 -> 0.0357 | I29: Kg
D31: Custos informados | G31: Convencional | H31: H4R | I31: Unidade
D32: N. de soldadores: | G32: 5 | H32: =G32 -> 5
D33: Capacidade dos cochichos | G33: 2 | H33: 0 | I33: Kg
D34: Salário Soldador + encargos | G34: 4500 | H34: =G34 -> 4500 | I34: R$
D35: Salario controlador + encargos | G35: 3000 | H35: 0 | I35: R$
D36: Custo dos eletrodos R$/Kg | I36: R$
D37: Número de estufas | G37: 2 | H37: 0 | I37: Unid.
D38: Custos dos cochichos | G38: 79 | H38: 0 | I38: R$
D39: Custos das estufas | G39: 7695 | H39: 0 | I39: R$
D41: DADOS CALCULADOS
D42: Área | G42: =((((G21-G23)/10)^2*TAN(G20/PI()/2))/2)*2+G21/10*G22/10+((2*(G21/10-G23/10)+2*G24)*TAN(G20/2/PI())+G22/10)*PI()/4 -> 1.303583182 | H42: =G42 -> 1.303583182 | I42: cm2
D43: Comp | G43: 200 | H43: 200 | I43: m
D44: Volume | G44: =G43*G42*100 -> 26071.66364 | H44: 26071.66364 | I44: cm3
D45: dens. Aço | G45: 7.85 | H45: 7.85 | I45: g/cm3
D46: Eficiencia | G46: 70 | H46: 70 | I46: %
D47: Peso da solda | G47: =G45*G44/1000 -> 204.6625596 | H47: 204.6625596 | I47: Kg
D48: Consumo de eletrodos | G48: =G47/(G46/100) -> 292.3750851 | H48: 292.3750851 | I48: Kg
D49: Numero de varetas | G49: =G48/G29 -> 8189.778295 | H49: 8189.778295 | I49: Unid.
D50: Sobra de eletrodo | G50: 4 | H50: 4 | I50: cm
D51: Peso das sobras | G51: =G29/35*G50*G49 -> 33.41429544 | H51: 33.41429544 | I51: Kg
D52: Peso total de eletrodos | G52: =G51+G48 -> 325.7893806 | H52: 325.7893806 | I52: Kg
D53: Tempo de soldagem por soldador | G53: =G48/G28/G32 -> 53.64680461 | H53: =H48/H28/H32 -> 53.64680461 | I53: h
D54: Numero de recargas por soldador | G54: =G48/G32/G33 -> 29.23750851 | H54: 0
D55: Tempo médio para recargas (10 min) | G55: =G54*10/60 -> 4.872918086 | H55: =H54*10 -> 0 | I55: h
D56: Tempo líquido de soldagem por soldador | G56: =G53+G55 -> 58.5197227 | H56: =H53-H55 -> 53.64680461 | I56: h
G57: =G56/8 -> 7.314965337 | H57: =H56/8 -> 6.705850577 | I57: Dias
D58: Custo de mão de obra | G58: =(G34+G35)/30*G57 -> 1828.741334 | H58: =(H34+H35)/30*H57 -> 1005.877586 | I58: R$
D59: Custos para tratamento do eletrodo | E59: Secagem | G59: =5.6*2*G48/500*0.44 -> 2.881648839 | H59: 0 | I59: R$
E60: Manutenção | G60: =5.6*24*30*G48/500*0.44 -> 1037.393582 | H60: 0 | I60: R$
D61: Custo total para tratamento | G61: =SUM(G59:G60) -> 1040.275231 | H61: =SUM(H59:H60) -> 0 | I61: R$
D62: Numero de cochichos | G62: =G32 -> 5 | H62: 0 | I62: Unid.
D63: Custo das estufas | G63: =G39*G37 -> 15390 | H63: 0 | I63: R$
D64: Custo dos cochichos | G64: =G38*G62 -> 395 | H64: 0 | I64: R$
D65: Investimento em estufas e cochichos | G65: =G64+G63 -> 15785 | H65: 0 | I65: R$
D66: Amortização | G66: =G64*0.5/12+G63*0.25/12 -> 337.0833333 | H66: 0 | I66: R$
D67: Custos de energia para soldagem | G67: =(G48/G28*130*24*0.44)/1000 -> 368.2316669 | H67: =(H48/H28*110*24*0.44)/1000 -> 311.5806412 | I67: R$
D68: Custo total dos eletrodos | G68: =G36*G52 -> 0 | H68: =H36*H52 -> 0
D69: Custo total de soldagem | G69: =G58+G61+G67+G66+G68 -> 3574.331565 | H69: =H58+H61+H67+H68 -> 1317.458228 | I69: R$
D70: Economia | G70: =(G69-H69)/H69 -> 1.713051154

Sheet Convencional (hidden)
D2: Comparativo dos custos de soldagem
D18: DADOS INFORMADOS
D19: Dados da Junta | F19: Nome 01 | G19: Nome 02 | H19: Nome 03 | I19: Nome 04 | J19: Nome 05 | K19: Nome 06 | L19: Nome 07 | M19: Nome 08 | N19: Nome 09 | O19: Nome 10 | P19: Nome 11 | Q19: Nome 12 | R19: Nome 13 | S19: Nome 14 | T19: Unidade
D20: Sheet thickness (t) | F20: =CAPA!E20 -> 12 | G20: =F20 -> 12 | H20: =G20 -> 12 | I20: 12 | J20: 12 | K20: 12 | L20: 12 | M20: 12 | N20: 12 | O20: 12 | P20: 12 | Q20: 12 | R20: 12 | S20: 12 | T20: =CAPA!D20 -> mm
D21: Root gap (b) | F21: =CAPA!E21 -> 3 | G21: =F21 -> 3 | H21: 3 | I21: 3 | J21: 3 | K21: 3 | L21: 3 | M21: 3 | N21: 3 | O21: 3 | P21: 3 | Q21: 3 | R21: 3 | S21: 3 | T21: =CAPA!D21 -> mm
D22: Reinforcement (h1) | F22: =CAPA!E22 -> 1 | G22: =F22 -> 1 | H22: 1 | I22: 1 | J22: 1 | K22: 1 | L22: 1 | M22: 1 | N22: 1 | O22: 1 | P22: 1 | Q22: 1 | R22: 1 | S22: 1 | T22: =CAPA!D22 -> mm
D23: Seam lengh | F23: =CAPA!E23 -> 120 | G23: =F23 -> 120 | H23: 120 | I23: 120 | J23: 120 | K23: 120 | L23: 120 | M23: 120 | N23: 120 | O23: 120 | P23: 120 | Q23: 120 | R23: 120 | S23: 120 | T23: =CAPA!D23 -> m
D24: Cap pass | F24: =CAPA!E24 -> 0 | G24: =F24 -> 0 | H24: 0 | I24: 0 | J24: 0 | K24: 0 | L24: 0 | M24: 0 | N24: 0 | O24: 0 | P24: 0 | Q24: 0 | R24: 0 | S24: 0 | T24: =CAPA!D24 -> cm³
D25: Density | F25: =CAPA!E25 -> 0 | G25: =F25 -> 0 | H25: 0 | I25: 0 | J25: 0 | K25: 0 | L25: 0 | M25: 0 | N25: 0 | O25: 0 | P25: 0 | Q25: 0 | R25: 0 | S25: 0 | T25: =CAPA!D25 -> g/cm³
D26: Depth of root face (s) | F26: =CAPA!E26 -> 0 | G26: =F26 -> 0 | H26: 0 | I26: 0 | J26: 0 | K26: 0 | L26: 0 | M26: 0 | N26: 0 | O26: 0 | P26: 0 | Q26: 0 | R26: 0 | S26: 0 | T26: =CAPA!D26 -> mm
D27: Weld preparation angle (α1) | F27: =CAPA!E27 -> 0 | G27: =F27 -> 0 | H27: 0 | I27: 0 | J27: 0 | K27: 0 | L27: 0 | M27: 0 | N27: 0 | O27: 0 | P27: 0 | Q27: 0 | R27: 0 | S27: 0 | T27: =CAPA!D27 -> °
D28: Angle of bevel | F28: =CAPA!E28 -> 15 | G28: =F28 -> 15 | H28: 15 | I28: 15 | J28: 15 | K28: 15 | L28: 15 | M28: 15 | N28: 15 | O28: 15 | P28: 15 | Q28: 15 | R28: 15 | S28: 15 | T28: =CAPA!D28 -> º
D29: Reinforcement Bottom (h2) | F29: =CAPA!E29 -> 0 | G29: =F29 -> 0 | H29: 0 | I29: 0 | J29: 0 | K29: 0 | L29: 0 | M29: 0 | N29: 0 | O29: 0 | P29: 0 | Q29: 0 | R29: 0 | S29: 0 | T29: =CAPA!D29 -> mm
D30: Weld preparation angle (α2) | F30: =CAPA!E30 -> 0 | G30: =F30 -> 0 | H30: 0 | I30: 0 | J30: 0 | K30: 0 | L30: 0 | M30: 0 | N30: 0 | O30: 0 | P30: 0 | Q30: 0 | R30: 0 | S30: 0 | T30: =CAPA!D30 -> °
D31: Groove Depth (n) | F31: =CAPA!E31 -> 0 | G31: =F31 -> 0 | H31: 0 | I31: 0 | J31: 0 | K31: 0 | L31: 0 | M31: 0 | N31: 0 | O31: 0 | P31: 0 | Q31: 0 | R31: 0 | S31: 0 | T31: =CAPA!D31 -> mm
D32: Penetration (e) | F32: =CAPA!E32 -> 1 | G32: =F32 -> 1 | H32: 1 | I32: 1 | J32: 1 | K32: 1 | L32: 1 | M32: 1 | N32: 1 | O32: 1 | P32: 1 | Q32: 1 | R32: 1 | S32: 1 | T32: =CAPA!D32 -> mm
D33: Root radius (R1) | F33: =CAPA!E33 -> 0 | G33: =F33 -> 0 | H33: 0 | I33: 0 | J33: 0 | K33: 0 | L33: 0 | M33: 0 | N33: 0 | O33: 0 | P33: 0 | Q33: 0 | R33: 0 | S33: 0 | T33: =CAPA!D33 -> mm
D34: Root radius (R2) | F34: =CAPA!E34 -> 0 | G34: =F34 -> 0 | H34: 0 | I34: 0 | J34: 0 | K34: 0 | L34: 0 | M34: 0 | N34: 0 | O34: 0 | P34: 0 | Q34: 0 | R34: 0 | S34: 0 | T34: =CAPA!D34 -> mm
D35: Seam thickness (a) | F35: =CAPA!E35 -> 0 | G35: =F35 -> 0 | H35: 0 | I35: 0 | J35: 0 | K35: 0 | L35: 0 | M35: 0 | N35: 0 | O35: 0 | P35: 0 | Q35: 0 | R35: 0 | S35: 0 | T35: =CAPA!D35 -> mm
D36: Seam thickness (b) | F36: =CAPA!E36 -> 0 | G36: =F36 -> 0 | H36: 0 | I36: 0 | J36: 0 | K36: 0 | L36: 0 | M36: 0 | N36: 0 | O36: 0 | P36: 0 | Q36: 0 | R36: 0 | S36: 0 | T36: =CAPA!D36 -> mm
D38: DADOS DO ELETRODO
D39: Taxa de deposição | F39: =CAPA!$E$40 -> 1.09 | G39: =CAPA!$E$40 -> 1.09 | H39: =CAPA!$E$40 -> 1.09 | I39: =CAPA!$E$40 -> 1.09 | J39: =CAPA!$E$40 -> 1.09 | K39: =CAPA!$E$40 -> 1.09 | L39: =CAPA!$E$40 -> 1.09 | M39: =CAPA!$E$40 -> 1.09 | N39: =CAPA!$E$40 -> 1.09 | O39: =CAPA!$E$40 -> 1.09 | P39: =CAPA!$E$40 -> 1.09 | Q39: =CAPA!$E$40 -> 1.09 | R39: =CAPA!$E$40 -> 1.09 | S39: =CAPA!$E$40 -> 1.09 | T39: Kg/h
D40: Peso por vareta | F40: =CAPA!$E$41 -> 0.0372 | G40: =CAPA!$E$41 -> 0.0372 | H40: =CAPA!$E$41 -> 0.0372 | I40: =CAPA!$E$41 -> 0.0372 | J40: =CAPA!$E$41 -> 0.0372 | K40: =CAPA!$E$41 -> 0.0372 | L40: =CAPA!$E$41 -> 0.0372 | M40: =CAPA!$E$41 -> 0.0372 | N40: =CAPA!$E$41 -> 0.0372 | O40: =CAPA!$E$41 -> 0.0372 | P40: =CAPA!$E$41 -> 0.0372 | Q40: =CAPA!$E$41 -> 0.0372 | R40: =CAPA!$E$41 -> 0.0372 | S40: =CAPA!$E$41 -> 0.0372 | T40: Kg
D42: Custos informados | F42: =F19 -> Nome 01 | G42: Nome 02 | H42: Nome 03 | I42: Nome 04 | J42: Nome 05 | K42: Nome 06 | L42: Nome 07 | M42: Nome 08 | N42: Nome 09 | O42: Nome 10 | P42: Nome 11 | Q42: Nome 12 | R42: Nome 13 | S42: Nome 14 | T42: Unidade
D43: N. de soldadores: | F43: =CAPA!E45 -> 6 | G43: =F43 -> 6 | H43: =G43 -> 6 | I43: 6 | J43: 6 | K43: 6 | L43: 6 | M43: 6 | N43: 6 | O43: 6 | P43: 6 | Q43: 6 | R43: 6 | S43: 6
D44: Capacidade dos cochichos | F44: =CAPA!E46 -> 2 | G44: =F44 -> 2 | H44: 2 | I44: 2 | J44: 2 | K44: 2 | L44: 2 | M44: 2 | N44: 2 | O44: 2 | P44: 2 | Q44: 2 | R44: 2 | S44: 2 | T44: Kg
D45: Salário Soldador + encargos | F45: =CAPA!E47 -> 4500 | G45: 4500 | H45: 4500 | I45: 4500 | J45: 4500 | K45: 4500 | L45: 4500 | M45: 4500 | N45: 4500 | O45: 4500 | P45: 4500 | Q45: 4500 | R45: 4500 | S45: 4500 | T45: R$
D46: Salario controlador + encargos | F46: =CAPA!E48 -> 1500 | G46: 1500 | H46: 1500 | I46: 1500 | J46: 1500 | K46: 1500 | L46: 1500 | M46: 1500 | N46: 1500 | O46: 1500 | P46: 1500 | Q46: 1500 | R46: 1500 | S46: 1500 | T46: R$
D47: Custo dos eletrodos R$/Kg | F47: =CAPA!E49 -> 8 | G47: 8 | H47: 8 | I47: 8 | J47: 8 | K47: 8 | L47: 8 | M47: 8 | N47: 8 | O47: 8 | P47: 8 | Q47: 8 | R47: 8 | S47: 8 | T47: R$
D48: Número de estufas | F48: =CAPA!E50 -> 2 | G48: 2 | H48: 2 | I48: 2 | J48: 2 | K48: 2 | L48: 2 | M48: 2 | N48: 2 | O48: 2 | P48: 2 | Q48: 2 | R48: 2 | S48: 2 | T48: Unid.
D49: Custos dos cochichos | F49: =CAPA!E51 -> 79 | G49: 79 | H49: 79 | I49: 79 | J49: 79 | K49: 79 | L49: 79 | M49: 79 | N49: 79 | O49: 79 | P49: 79 | Q49: 79 | R49: 79 | S49: 79 | T49: R$
D50: Custos das estufas | F50: =CAPA!E52 -> 7695 | G50: 7695 | H50: 7695 | I50: 7695 | J50: 7695 | K50: 7695 | L50: 7695 | M50: 7695 | N50: 7695 | O50: 7695 | P50: 7695 | Q50: 7695 | R50: 7695 | S50: 7695 | T50: R$
D52: DADOS CALCULADOS
D53: Área | F53: =(F20*F21+(PI()*F22*(F21+2*F32))/4)/100 -> 0.3992699082 | G53: =(G20*G21+(PI()*G22*(G21+2*G32))/4+((G20-G26)^2*TAN(G27*PI()/180)/2))/100 -> 0.3992699082 | H53: =((H20*H21+(PI()*H22*(H21+2*H32))/4+((H20-H26)^2*TAN(H27*PI()/180)/2))/100)*2 -> 0.7985398163 | I53: =(I21*I20 + ((I20-I26-I31)^2*TAN(I30*PI()/180))/2 + ((I31^2*TAN(I27*PI()/180)))/2 + (PI()*(I21+TAN(I30*PI()/180)*I31+2*I22))*I22/4 + PI()*(I21+TAN(I30*PI()/180)*(I20-I26-I31))*I29/4)/100 -> 0.3992699082 | J53: =(J20*J21 + ((J20-J26)^2*TAN(J27/2*PI()/180)) + (PI()*(2*(TAN(J27/2*PI()/180)*(J20-J26)+J21)*J22))/4)/100 -> 0.4071238898 | K53: =(K20*K21 + (((K20-K21)/2)^2*TAN(K27/2*PI()/180)) + (PI()*K22*TAN(K27/2*PI()/180)*(K20-K21))/4)/100 -> 0.36 | L53: =(L20*L21 + ((L20/3)^2*TAN(L30/2*PI()/180)) + ((2*L20/3)^2*TAN(L28/2*PI()/180)) + (PI()*((2*(L20/3*TAN(L30/2*PI()/180)+L21)+2*L22)*L29))/4 +(PI()*((2*(2*L20/3*TAN(L27/2*PI()/180)+L29)+2*L22)*L29))/4)/100 -> 0.4442575985 | M53: =(M20*M21 + TAN(M27/2*PI()/180)*M31^2 + (M20-M26-M31)^2*TAN(M30/2*PI()/180) + (PI()* (2*TAN(M27/2*PI()/180)*M31+M21)*M22)/4 + (PI()*(2*TAN(M30/2*PI()/180) *(M20-M26-M31)+M21)*M29)/4)/100 -> 0.3835619449 | N53: =(J20*J21 + ((J20-J26)^2*TAN(J27*PI()/180)) + (PI()*(2*(TAN(J27*PI()/180)*(J20-J26)+J21)*J22))/4)/100 -> 0.4071238898 | O53: =(O20*O21 + (O20-O26-O33)^2*TAN(O28*PI()/180)*2 + (O33^2*(2*(PI()-(PI()/2+O28*PI()/180))-SIN(2*(PI()-(PI()/2+O28*PI()/180)))))/2 + 2*(O20-O26-O33)*O33 + (PI()*(2*(O20-O26-O33)*TAN(O28*PI()/180)+2*O33+O21+2*O22)*O22)/4)/100 -> 1.221470815 | P53: =(P20*P21 + (P31-P33)^2*TAN(P27*PI()/180) + ((P31-P33)*P33)*2 * P33^2*((PI()/2-P27*PI()/180)-SIN(PI()/2-P27*PI()/180))/2 + ((2*(P32+(P31-P33)*TAN(P27*PI()/180)+P33)+P21)*PI()*P22)/4 + (P20-P26-P31)^2*TAN(P30*PI()/180) + P34^2*((PI()/2-P30*PI()/180)-SIN(PI()/2-P30*PI()/180))/2 +((P20-P26-P31)*P34)*2 + ((2*(P32+(P20-P26-P31)*TAN(P30*PI()/180)+P34)+P21)*PI()*P29)/4)/100 -> 0.3992699082 | Q53: =(Q20*Q21+Q31^2*TAN(Q27/2*PI()/180) + (PI()*(2*(Q31*TAN(Q27/2*PI()/180)+Q32)+Q21)*Q22)/4 + (Q20-Q26-Q31)^2*TAN(Q28*PI()/180) + Q33^2*((PI()/2-Q28*PI()/180)-SIN(PI()/2-Q28*PI()/180))/2 + ((Q20-Q26-Q31)*Q33)*2 + ((2*(Q32+(Q20-Q26-Q31)*TAN(Q28*PI()/180)+Q33)+Q21)*PI())/4*Q29)/100 -> 0.7851167453 | R53: =(R20*R21+R20^2*TAN(R28*PI()/180)+(((R20*TAN(R28*PI()/180)+R32)*2+R21)*PI()*R22)/4)/100 -> 0.8356239781 | S53: =(S35^2+2*PI()*S35*S22/4)/100 -> 0 | T53: cm2
D54: Comp | F54: =F23 -> 120 | G54: =G23 -> 120 | H54: =H23 -> 120 | I54: =I23 -> 120 | J54: 120 | K54: 120 | L54: 120 | M54: 120 | N54: 120 | O54: 120 | P54: 120 | Q54: 120 | R54: 120 | S54: 120 | T54: m
D55: Volume | F55: =F54*F53*100 -> 4791.238898 | G55: =G54*G53*100 -> 4791.238898 | H55: =H54*H53*100 -> 9582.477796 | I55: 4791.238898 | J55: 4885.486678 | K55: 4320 | L55: 5331.091181 | M55: 4602.743339 | N55: 4885.486678 | O55: 14657.64978 | P55: 4791.238898 | Q55: 9421.400943 | R55: 10027.48774 | S55: 0 | T55: cm3
D56: dens. Aço | F56: 7.85 | G56: 7.85 | H56: 7.85 | I56: 7.85 | J56: 7.85 | K56: 7.85 | L56: 7.85 | M56: 7.85 | N56: 7.85 | O56: 7.85 | P56: 7.85 | Q56: 7.85 | R56: 7.85 | S56: 7.85 | T56: g/cm3
D57: Eficiencia | F57: 70 | G57: 70 | H57: 70 | I57: 70 | J57: 70 | K57: 70 | L57: 70 | M57: 70 | N57: 70 | O57: 70 | P57: 70 | Q57: 70 | R57: 70 | S57: 70 | T57: %
D58: Peso da solda | F58: =F56*F55/1000 -> 37.61122535 | G58: =G56*G55/1000 -> 37.61122535 | H58: 75.2224507 | I58: 37.61122535 | J58: 38.35107042 | K58: 33.912 | L58: 41.84906577 | M58: 36.13153521 | N58: 38.35107042 | O58: 115.0625508 | P58: 37.61122535 | Q58: 73.9579974 | R58: 78.71577874 | S58: 0 | T58: Kg
D59: Consumo de eletrodos | F59: =F58/(F57/100) -> 53.73032193 | G59: =G58/(G57/100) -> 53.73032193 | H59: 107.4606439 | I59: 53.73032193 | J59: =J58/(J57/100) -> 54.78724346 | K59: 48.44571429 | L59: 59.78437968 | M59: 51.61647887 | N59: 54.78724346 | O59: 164.3750726 | P59: 53.73032193 | Q59: 105.654282 | R59: 112.4511125 | S59: 0 | T59: Kg
D60: Numero de varetas | F60: =F59/F40 -> 1444.363493 | G60: =G59/G40 -> 1444.363493 | H60: 2888.726985 | I60: 1444.363493 | J60: 1472.775362 | K60: 1302.304147 | L60: 1607.106981 | M60: 1387.539755 | N60: 1472.775362 | O60: 4418.684746 | P60: 1444.363493 | Q60: 2840.168871 | R60: 3022.879368 | S60: 0 | T60: Unid.
D61: Sobra de eletrodo | F61: 4 | G61: 4 | H61: 4 | I61: 4 | J61: 4 | K61: 4 | L61: 4 | M61: 4 | N61: 4 | O61: 4 | P61: 4 | Q61: 4 | R61: 4 | S61: 4 | T61: cm
D62: Peso das sobras | F62: =F40/35*F61*F60 -> 6.14060822 | G62: =G40/35*G61*G60 -> 6.14060822 | H62: 12.28121644 | I62: 6.14060822 | J62: =J40/35*J61*J60 -> 6.261399252 | K62: 5.536653061 | L62: 6.832500535 | M62: 5.899026157 | N62: 6.261399252 | O62: 18.78572258 | P62: 6.14060822 | Q62: 12.07477509 | R62: 12.85155571 | S62: 0 | T62: Kg
D63: Peso total de eletrodos | F63: =F62+F59 -> 59.87093015 | G63: =G62+G59 -> 59.87093015 | H63: 119.7418603 | I63: 59.87093015 | J63: 61.04864271 | K63: 53.98236735 | L63: 66.61688021 | M63: 57.51550503 | N63: 61.04864271 | O63: 183.1607951 | P63: 59.87093015 | Q63: 117.7290571 | R63: 125.3026682 | S63: 0 | T63: Kg
D64: Tempo de soldagem por soldador | F64: =F59/F39/F43 -> 8.215645555 | G64: =G59/G39/G43 -> 8.215645555 | H64: 16.43129111 | I64: 8.215645555 | J64: =J59/J39/J43 -> 8.377254351 | K64: 7.407601573 | L64: 9.141342458 | M64: 7.892427962 | N64: 8.377254351 | O64: 25.13380314 | P64: 8.215645555 | Q64: 16.15508899 | R64: 17.19435971 | S64: 0 | T64: h
D65: Numero de recargas por soldador | F65: =F59/F43/F44 -> 4.477526827 | G65: =G59/G43/G44 -> 4.477526827 | H65: 8.955053655 | I65: 4.477526827 | J65: =J59/J43/J44 -> 4.565603621 | K65: 4.037142857 | L65: 4.98203164 | M65: 4.301373239 | N65: 4.565603621 | O65: 13.69792271 | P65: 4.477526827 | Q65: 8.804523501 | R65: 9.370926041 | S65: 0
D66: Tempo médio para recargas (10 min) | F66: =F65*10/60 -> 0.7462544712 | G66: =G65*10/60 -> 0.7462544712 | H66: 1.492508942 | I66: 0.7462544712 | J66: 0.7609339369 | K66: 0.6728571429 | L66: 0.8303386066 | M66: 0.7168955399 | N66: 0.7609339369 | O66: 2.282987119 | P66: 0.7462544712 | Q66: 1.467420583 | R66: 1.561821007 | S66: 0 | T66: h
D67: Tempo líquido de soldagem por soldador | F67: =F64+F66 -> 8.961900026 | G67: =G64+G66 -> 8.961900026 | H67: 17.92380005 | I67: 8.961900026 | J67: 9.138188288 | K67: 8.080458716 | L67: 9.971681065 | M67: 8.609323502 | N67: 9.138188288 | O67: 27.41679026 | P67: 8.961900026 | Q67: 17.62250958 | R67: 18.75618071 | S67: 0 | T67: h
F68: =F67/8 -> 1.120237503 | G68: =G67/8 -> 1.120237503 | H68: 2.240475006 | I68: 1.120237503 | J68: 1.142273536 | K68: 1.010057339 | L68: 1.246460133 | M68: 1.076165438 | N68: 1.142273536 | O68: 3.427098783 | P68: 1.120237503 | Q68: 2.202813697 | R68: 2.344522589 | S68: 0 | T68: Dias
D69: Custo de mão de obra | F69: =(F45/30*F43+F46/30)*F68 -> 1064.225628 | G69: 1064.225628 | H69: 2128.451256 | I69: 1064.225628 | J69: =(J45/30*J43+J46/30)*J68 -> 1085.159859 | K69: =(K45/30*K43+K46/30)*K68 -> 959.5544725 | L69: =(L45/30*L43+L46/30)*L68 -> 1184.137126 | M69: =(M45/30*M43+M46/30)*M68 -> 1022.357166 | N69: =(N45/30*N43+N46/30)*N68 -> 1085.159859 | O69: 3255.743844 | P69: =(P45/30*P43+P46/30)*P68 -> 1064.225628 | Q69: =(Q45/30*Q43+Q46/30)*Q68 -> 2092.673012 | R69: =(R45/30*R43+R46/30)*R68 -> 2227.29646 | S69: =(S45/30*S43+S46/30)*S68 -> 0 | T69: R$
D70: Custos para tratamento do eletrodo | E70: Secagem | F70: =5.6*F48*F59/500*0.44*2 -> 1.059132106 | G70: =5.6*G48*G59/500*0.44*2 -> 1.059132106 | H70: 2.118264212 | I70: 1.059132106 | J70: 1.079966143 | K70: 0.95496192 | L70: 1.178469692 | M70: 1.017464032 | N70: 1.079966143 | O70: 3.24016143 | P70: 1.059132106 | Q70: 2.082657207 | R70: 2.216636329 | S70: 0 | T70: R$
E71: Manutenção | F71: =5.6*24*F68*F59/500*0.44 -> 7.118877035 | G71: =5.6*24*G68*G59/500*0.44 -> 7.118877035 | H71: 28.47550814 | I71: 7.118877035 | J71: 7.40170047 | K71: 5.787397777 | L71: 8.813492937 | M71: 6.569757749 | N71: 7.40170047 | O71: 66.62611977 | P71: 7.118877035 | Q71: 27.52623493 | R71: 31.18172368 | S71: 0 | T71: R$
D72: Custo total para tratamento | F72: =SUM(F70:F71) -> 8.178009141 | G72: =SUM(G70:G71) -> 8.178009141 | H72: 30.59377235 | I72: 8.178009141 | J72: 8.481666613 | K72: 6.742359697 | L72: 9.991962629 | M72: 7.587221781 | N72: 8.481666613 | O72: 69.8662812 | P72: 8.178009141 | Q72: 29.60889213 | R72: 33.39836001 | S72: 0 | T72: R$
D73: Numero de cochichos | F73: =F43 -> 6 | G73: =G43 -> 6 | H73: 6 | I73: 6 | J73: 6 | K73: 6 | L73: 6 | M73: 6 | N73: 6 | O73: 6 | P73: 6 | Q73: 6 | R73: 6 | S73: 6 | T73: Unid.
D74: Custo das estufas | F74: =F50*F48 -> 15390 | G74: =G50*G48 -> 15390 | H74: 15390 | I74: 15390 | J74: 15390 | K74: 15390 | L74: 15390 | M74: 15390 | N74: 15390 | O74: 15390 | P74: 15390 | Q74: 15390 | R74: 15390 | S74: 15390 | T74: R$
D75: Custo dos cochichos | F75: =F49*F73 -> 474 | G75: =G49*G73 -> 474 | H75: 474 | I75: 474 | J75: 474 | K75: 474 | L75: 474 | M75: 474 | N75: 474 | O75: 474 | P75: 474 | Q75: 474 | R75: 474 | S75: 474 | T75: R$
D76: Investimento em estufas e cochichos | F76: =F75+F74 -> 15864 | G76: =G75+G74 -> 15864 | H76: 15864 | I76: 15864 | J76: 15864 | K76: 15864 | L76: 15864 | M76: 15864 | N76: 15864 | O76: 15864 | P76: 15864 | Q76: 15864 | R76: 15864 | S76: 15864 | T76: R$
D77: Amortização | F77: =(F75*0.5/12+F74*0.25/12) -> 340.375 | G77: =(G75*0.5/12+G74*0.25/12) -> 340.375 | H77: 340.375 | I77: 340.375 | J77: 340.375 | K77: 340.375 | L77: 340.375 | M77: 340.375 | N77: 340.375 | O77: 340.375 | P77: 340.375 | Q77: 340.375 | R77: 340.375 | S77: 340.375 | T77: R$
D78: Custos de energia para soldagem | F78: =(F59/F39*130*24*0.44)/1000 -> 67.67062931 | G78: =(G59/G39*130*24*0.44)/1000 -> 67.67062931 | H78: =(H59/H39*130*24*0.44)/1000 -> 135.3412586 | I78: 67.67062931 | J78: 69.00176864 | K78: 61.01493263 | L78: 75.29540956 | M78: 65.00835064 | N78: 69.00176864 | O78: 207.0221097 | P78: 67.67062931 | Q78: 133.066237 | R78: 141.626502 | S78: 0 | T78: R$
D79: Custo total dos eletrodos | F79: =F47*F63 -> 478.9674412 | G79: =G47*G63 -> 478.9674412 | H79: 957.9348824 | I79: 478.9674412 | J79: 488.3891417 | K79: 431.8589388 | L79: 532.9350417 | M79: 460.1240402 | N79: 488.3891417 | O79: 1465.286361 | P79: 478.9674412 | Q79: 941.8324567 | R79: 1002.421346 | S79: 0
D80: Custo total de soldagem | F80: =F69+F72+F78+F77+F79 -> 1959.416708 | G80: =G69+G72+G78+G77+G79 -> 1959.416708 | H80: =H69+H72+H78+H77+H79 -> 3592.69617 | I80: 1959.416708 | J80: 1991.407436 | K80: 1799.545704 | L80: 2142.73454 | M80: 1895.451778 | N80: 1991.407436 | O80: 5338.293596 | P80: 1959.416708 | Q80: 3537.555598 | R80: 3745.117667 | S80: 340.375 | T80: R$
D83: Economia | F83: =(F80-#REF!)/#REF! -> 

Sheet H4R - REV (hidden)
D2: Comparativo dos custos de soldagem
D18: DADOS INFORMADOS
B19: Ângulo do Chanfro | D19: Dados da Junta | F19: =Convencional!F19 -> Nome 01 | G19: =Convencional!G19 -> Nome 02 | H19: =Convencional!H19 -> Nome 03 | I19: =Convencional!I19 -> Nome 04 | J19: =Convencional!J19 -> Nome 05 | K19: =Convencional!K19 -> Nome 06 | L19: =Convencional!L19 -> Nome 07 | M19: =Convencional!M19 -> Nome 08 | N19: =Convencional!N19 -> Nome 09 | O19: =Convencional!O19 -> Nome 10 | P19: =Convencional!P19 -> Nome 11 | Q19: =Convencional!Q19 -> Nome 12 | R19: =Convencional!R19 -> Nome 13 | S19: =Convencional!S19 -> Nome 14 | T19: Unidade
B20: Espessura da chapa (e) | D20: Sheet thickness | F20: =CAPA!E20 -> 12 | G20: =F20 -> 12 | H20: =G20 -> 12 | I20: 12 | J20: 12 | K20: 12 | L20: 12 | M20: 12 | N20: 12 | O20: 12 | P20: 12 | Q20: 12 | R20: 12 | S20: 12 | T20: =CAPA!D20 -> mm
B21: Abertura da Raiz ( r) | D21: Root gap | F21: =CAPA!E21 -> 3 | G21: =F21 -> 3 | H21: 3 | I21: 3 | J21: 3 | K21: 3 | L21: 3 | M21: 3 | N21: 3 | O21: 3 | P21: 3 | Q21: 3 | R21: 3 | S21: 3 | T21: =CAPA!D21 -> mm
D22: Reinforcement | F22: =CAPA!E22 -> 1 | G22: 1 | H22: 1 | I22: 1 | J22: 1 | K22: 1 | L22: 1 | M22: 1 | N22: 1 | O22: 1 | P22: 1 | Q22: 1 | R22: 1 | S22: 1 | T22: =CAPA!D22 -> mm
D23: Seam lengh | F23: =CAPA!E23 -> 120 | G23: 120 | H23: 120 | I23: 120 | J23: 120 | K23: 120 | L23: 120 | M23: 120 | N23: 120 | O23: 120 | P23: 120 | Q23: 120 | R23: 120 | S23: 120 | T23: =CAPA!D23 -> m
D24: Cap pass | F24: =CAPA!E24 -> 0 | G24: 0 | H24: 0 | I24: 0 | J24: 0 | K24: 0 | L24: 0 | M24: 0 | N24: 0 | O24: 0 | P24: 0 | Q24: 0 | R24: 0 | S24: 0 | T24: =CAPA!D24 -> cm³
D25: Density | F25: =CAPA!E25 -> 0 | G25: 0 | H25: 0 | I25: 0 | J25: 0 | K25: 0 | L25: 0 | M25: 0 | N25: 0 | O25: 0 | P25: 0 | Q25: 0 | R25: 0 | S25: 0 | T25: =CAPA!D25 -> g/cm³
D26: Depth of root face | F26: =CAPA!E26 -> 0 | G26: 0 | H26: 0 | I26: 0 | J26: 0 | K26: 0 | L26: 0 | M26: 0 | N26: 0 | O26: 0 | P26: 0 | Q26: 0 | R26: 0 | S26: 0 | T26: =CAPA!D26 -> mm
D27: Weld preparation angle | F27: =CAPA!E27 -> 0 | G27: 0 | H27: 0 | I27: 0 | J27: 0 | K27: 0 | L27: 0 | M27: 0 | N27: 0 | O27: 0 | P27: 0 | Q27: 0 | R27: 0 | S27: 0 | T27: =CAPA!D27 -> °
D28: Angle of bevel | F28: =CAPA!E28 -> 15 | G28: 15 | H28: 15 | I28: 15 | J28: 15 | K28: 15 | L28: 15 | M28: 15 | N28: 15 | O28: 15 | P28: 15 | Q28: 15 | R28: 15 | S28: 15 | T28: =CAPA!D28 -> º
D29: Reinforcement Bottom (h2) | F29: =CAPA!E29 -> 0 | G29: 0 | H29: 0 | I29: 0 | J29: 0 | K29: 0 | L29: 0 | M29: 0 | N29: 0 | O29: 0 | P29: 0 | Q29: 0 | R29: 0 | S29: 0 | T29: =CAPA!D29 -> mm
D30: Weld preparation angle (α2) | F30: =CAPA!E30 -> 0 | G30: 0 | H30: 0 | I30: 0 | J30: 0 | K30: 0 | L30: 0 | M30: 0 | N30: 0 | O30: 0 | P30: 0 | Q30: 0 | R30: 0 | S30: 0 | T30: =CAPA!D30 -> °
D31: Groove Depth | F31: =CAPA!E31 -> 0 | G31: 0 | H31: 0 | I31: 0 | J31: 0 | K31: 0 | L31: 0 | M31: 0 | N31: 0 | O31: 0 | P31: 0 | Q31: 0 | R31: 0 | S31: 0 | T31: =CAPA!D31 -> mm
D32: Penetration | F32: =CAPA!E32 -> 1 | G32: 1 | H32: 1 | I32: 1 | J32: 1 | K32: 1 | L32: 1 | M32: 1 | N32: 1 | O32: 1 | P32: 1 | Q32: 1 | R32: 1 | S32: 1 | T32: =CAPA!D32 -> mm
D33: Root radius (R1) | F33: =CAPA!E33 -> 0 | G33: 0 | H33: 0 | I33: 0 | J33: 0 | K33: 0 | L33: 0 | M33: 0 | N33: 0 | O33: 0 | P33: 0 | Q33: 0 | R33: 0 | S33: 0 | T33: =CAPA!D33 -> mm
D34: Root radius (R2) | F34: =CAPA!E34 -> 0 | G34: 0 | H34: 0 | I34: 0 | J34: 0 | K34: 0 | L34: 0 | M34: 0 | N34: 0 | O34: 0 | P34: 0 | Q34: 0 | R34: 0 | S34: 0 | T34: =CAPA!D34 -> mm
B35: Face da raiz (g) | D35: Seam thickness (a) | F35: =CAPA!E35 -> 0 | G35: 0 | H35: 0 | I35: 0 | J35: 0 | K35: 0 | L35: 0 | M35: 0 | N35: 0 | O35: 0 | P35: 0 | Q35: 0 | R35: 0 | S35: 0 | T35: =CAPA!D35 -> mm
B36: Penetração (t) | D36: Seam thickness (b) | F36: =CAPA!E36 -> 0 | G36: 0 | H36: 0 | I36: 0 | J36: 0 | K36: 0 | L36: 0 | M36: 0 | N36: 0 | O36: 0 | P36: 0 | Q36: 0 | R36: 0 | S36: 0 | T36: =CAPA!D36 -> mm
D38: DADOS DO ELETRODO
D39: Taxa de deposição | F39: =CAPA!$F$40 -> 1.09 | G39: =CAPA!$F$40 -> 1.09 | H39: =CAPA!$F$40 -> 1.09 | I39: =CAPA!$F$40 -> 1.09 | J39: =CAPA!$F$40 -> 1.09 | K39: =CAPA!$F$40 -> 1.09 | L39: =CAPA!$F$40 -> 1.09 | M39: =CAPA!$F$40 -> 1.09 | N39: =CAPA!$F$40 -> 1.09 | O39: =CAPA!$F$40 -> 1.09 | P39: =CAPA!$F$40 -> 1.09 | Q39: =CAPA!$F$40 -> 1.09 | R39: =CAPA!$F$40 -> 1.09 | S39: =CAPA!$F$40 -> 1.09 | T39: Kg/h
D40: Peso por vareta | F40: =CAPA!$F$41 -> 0.0347 | G40: =CAPA!$F$41 -> 0.0347 | H40: =CAPA!$F$41 -> 0.0347 | I40: =CAPA!$F$41 -> 0.0347 | J40: =CAPA!$F$41 -> 0.0347 | K40: =CAPA!$F$41 -> 0.0347 | L40: =CAPA!$F$41 -> 0.0347 | M40: =CAPA!$F$41 -> 0.0347 | N40: =CAPA!$F$41 -> 0.0347 | O40: =CAPA!$F$41 -> 0.0347 | P40: =CAPA!$F$41 -> 0.0347 | Q40: =CAPA!$F$41 -> 0.0347 | R40: =CAPA!$F$41 -> 0.0347 | S40: =CAPA!$F$41 -> 0.0347 | T40: Kg
D42: Custos informados | F42: =F19 -> Nome 01 | G42: Nome 02 | H42: Nome 03 | I42: Nome 04 | J42: Nome 05 | K42: Nome 06 | L42: Nome 07 | M42: Nome 08 | N42: Nome 09 | O42: Nome 10 | P42: Nome 11 | Q42: Nome 12 | R42: Nome 13 | S42: Nome 14 | T42: Unidade
D43: N. de soldadores: | F43: =CAPA!F45 -> 6 | G43: =F43 -> 6 | H43: =G43 -> 6 | I43: 6 | J43: 6 | K43: 6 | L43: 6 | M43: 6 | N43: 6 | O43: 6 | P43: 6 | Q43: 6 | R43: 6 | S43: 6
D44: Capacidade dos cochichos | F44: =CAPA!F46 -> 0 | G44: =F44 -> 0 | H44: 0 | I44: 0 | J44: 0 | K44: 0 | L44: 0 | M44: 0 | N44: 0 | O44: 0 | P44: 0 | Q44: 0 | R44: 0 | S44: 0 | T44: Kg
D45: Salário Soldador + encargos | F45: =CAPA!F47 -> 4500 | G45: 4500 | H45: 4500 | I45: 4500 | J45: 4500 | K45: 4500 | L45: 4500 | M45: 4500 | N45: 4500 | O45: 4500 | P45: 4500 | Q45: 4500 | R45: 4500 | S45: 4500 | T45: R$
D46: Salario controlador + encargos | F46: =CAPA!F48 -> 0 | G46: 0 | H46: 0 | I46: 0 | J46: 0 | K46: 0 | L46: 0 | M46: 0 | N46: 0 | O46: 0 | P46: 0 | Q46: 0 | R46: 0 | S46: 0 | T46: R$
D47: Custo dos eletrodos R$/Kg | F47: =CAPA!F49 -> 12 | G47: 12 | H47: 12 | I47: 12 | J47: 12 | K47: 12 | L47: 12 | M47: 12 | N47: 12 | O47: 12 | P47: 12 | Q47: 12 | R47: 12 | S47: 12 | T47: R$
D48: Número de estufas | F48: =CAPA!F50 -> 0 | G48: 0 | H48: 0 | I48: 0 | J48: 0 | K48: 0 | L48: 0 | M48: 0 | N48: 0 | O48: 0 | P48: 0 | Q48: 0 | R48: 0 | S48: 0 | T48: Unid.
D49: Custos dos cochichos | F49: =CAPA!F51 -> 0 | G49: 0 | H49: 0 | I49: 0 | J49: 0 | K49: 0 | L49: 0 | M49: 0 | N49: 0 | O49: 0 | P49: 0 | Q49: 0 | R49: 0 | S49: 0 | T49: R$
D50: Custos das estufas | F50: =CAPA!F52 -> 0 | G50: 0 | H50: 0 | I50: 0 | J50: 0 | K50: 0 | L50: 0 | M50: 0 | N50: 0 | O50: 0 | P50: 0 | Q50: 0 | R50: 0 | S50: 0 | T50: R$
D52: DADOS CALCULADOS
D53: Área | F53: =(F20*F21+(PI()*F22*(F21+2*F32))/4)/100 -> 0.3992699082 | G53: =(G20*G21+(PI()*G22*(G21+2*G32))/4+((G20-G26)^2*TAN(G27*PI()/180)/2))/100 -> 0.3992699082 | H53: =((H20*H21+(PI()*H22*(H21+2*H32))/4+((H20-H26)^2*TAN(H27*PI()/180)/2))/100)*2 -> 0.7985398163 | I53: =(I21*I20 + ((I20-I26-I31)^2*TAN(I30*PI()/180))/2 + ((I31^2*TAN(I27*PI()/180)))/2 + (PI()*(I21+TAN(I30*PI()/180)*I31+2*I22))*I22/4 + PI()*(I21+TAN(I30*PI()/180)*(I20-I26-I31))*I29/4)/100 -> 0.3992699082 | J53: =(J20*J21 + ((J20-J26)^2*TAN(J27/2*PI()/180)) + (PI()*(2*(TAN(J27/2*PI()/180)*(J20-J26)+J21)*J22))/4)/100 -> 0.4071238898 | K53: =(K20*K21 + (((K20-K21)/2)^2*TAN(K27/2*PI()/180)) + (PI()*K22*TAN(K27/2*PI()/180)*(K20-K21))/4)/100 -> 0.36 | L53: =(L20*L21 + ((L20/3)^2*TAN(L30/2*PI()/180)) + ((2*L20/3)^2*TAN(L28/2*PI()/180)) + (PI()*((2*(L20/3*TAN(L30/2*PI()/180)+L21)+2*L22)*L29))/4 +(PI()*((2*(2*L20/3*TAN(L27/2*PI()/180)+L29)+2*L22)*L29))/4)/100 -> 0.4442575985 | M53: =(M20*M21 + TAN(M27/2*PI()/180)*M31^2 + (M20-M26-M31)^2*TAN(M30/2*PI()/180) + (PI()* (2*TAN(M27/2*PI()/180)*M31+M21)*M22)/4 + (PI()*(2*TAN(M30/2*PI()/180) *(M20-M26-M31)+M21)*M29)/4)/100 -> 0.3835619449 | N53: =(J20*J21 + ((J20-J26)^2*TAN(J27*PI()/180)) + (PI()*(2*(TAN(J27*PI()/180)*(J20-J26)+J21)*J22))/4)/100 -> 0.4071238898 | O53: =(O20*O21 + (O20-O26-O33)^2*TAN(O28*PI()/180)*2 + (O33^2*(2*(PI()-(PI()/2+O28*PI()/180))-SIN(2*(PI()-(PI()/2+O28*PI()/180)))))/2 + 2*(O20-O26-O33)*O33 + (PI()*(2*(O20-O26-O33)*TAN(O28*PI()/180)+2*O33+O21+2*O22)*O22)/4)/100 -> 1.221470815 | P53: =(P20*P21 + (P31-P33)^2*TAN(P27*PI()/180) + ((P31-P33)*P33)*2 * P33^2*((PI()/2-P27*PI()/180)-SIN(PI()/2-P27*PI()/180))/2 + ((2*(P32+(P31-P33)*TAN(P27*PI()/180)+P33)+P21)*PI()*P22)/4 + (P20-P26-P31)^2*TAN(P30*PI()/180) + P34^2*((PI()/2-P30*PI()/180)-SIN(PI()/2-P30*PI()/180))/2 +((P20-P26-P31)*P34)*2 + ((2*(P32+(P20-P26-P31)*TAN(P30*PI()/180)+P34)+P21)*PI()*P29)/4)/100 -> 0.3992699082 | Q53: =(Q20*Q21+Q31^2*TAN(Q27/2*PI()/180) + (PI()*(2*(Q31*TAN(Q27/2*PI()/180)+Q32)+Q21)*Q22)/4 + (Q20-Q26-Q31)^2*TAN(Q28*PI()/180) + Q33^2*((PI()/2-Q28*PI()/180)-SIN(PI()/2-Q28*PI()/180))/2 + ((Q20-Q26-Q31)*Q33)*2 + ((2*(Q32+(Q20-Q26-Q31)*TAN(Q28*PI()/180)+Q33)+Q21)*PI())/4*Q29)/100 -> 0.7851167453 | R53: =(R20*R21+R20^2*TAN(R28*PI()/180)+(((R20*TAN(R28*PI()/180)+R32)*2+R21)*PI()*R22)/4)/100 -> 0.8356239781 | S53: =(S35^2+2*PI()*S35*S22/4)/100 -> 0 | T53: cm2
D54: Comp | F54: =Convencional!F54 -> 120 | G54: =Convencional!G54 -> 120 | H54: =Convencional!H54 -> 120 | I54: =Convencional!I54 -> 120 | J54: =Convencional!J54 -> 120 | K54: =Convencional!K54 -> 120 | L54: =Convencional!L54 -> 120 | M54: =Convencional!M54 -> 120 | N54: =Convencional!N54 -> 120 | O54: =Convencional!O54 -> 120 | P54: =Convencional!P54 -> 120 | Q54: =Convencional!Q54 -> 120 | R54: =Convencional!R54 -> 120 | S54: =Convencional!S54 -> 120 | T54: m
D55: Volume | F55: =F54*F53*100 -> 4791.238898 | G55: =G54*G53*100 -> 4791.238898 | H55: 9582.477796 | I55: 4791.238898 | J55: 4885.486678 | K55: 4320 | L55: 5331.091181 | M55: 4602.743339 | N55: 4885.486678 | O55: 14657.64978 | P55: 4791.238898 | Q55: 9421.400943 | R55: 10027.48774 | S55: 0 | T55: cm3
D56: dens. Aço | F56: 7.85 | G56: 7.85 | H56: 7.85 | I56: 7.85 | J56: 7.85 | K56: 7.85 | L56: 7.85 | M56: 7.85 | N56: 7.85 | O56: 7.85 | P56: 7.85 | Q56: 7.85 | R56: 7.85 | S56: 7.85 | T56: g/cm3
D57: Eficiencia | F57: 76 | G57: 76 | H57: 76 | I57: 76 | J57: 76 | K57: 76 | L57: 76 | M57: 76 | N57: 76 | O57: 76 | P57: 76 | Q57: 76 | R57: 76 | S57: 76 | T57: %
D58: Peso da solda | F58: =F56*F55/1000 -> 37.61122535 | G58: =G56*G55/1000 -> 37.61122535 | H58: 75.2224507 | I58: 37.61122535 | J58: 38.35107042 | K58: 33.912 | L58: 41.84906577 | M58: 36.13153521 | N58: 38.35107042 | O58: 115.0625508 | P58: 37.61122535 | Q58: 73.9579974 | R58: 78.71577874 | S58: 0 | T58: Kg
D59: Consumo de eletrodos | F59: =F58/(F57/100) -> 49.48845441 | G59: =G58/(G57/100) -> 49.48845441 | H59: 98.97690881 | I59: 49.48845441 | J59: 50.46193476 | K59: 44.62105263 | L59: 55.06456023 | M59: 47.5414937 | N59: 50.46193476 | O59: 151.3980932 | P59: 49.48845441 | Q59: 97.31315448 | R59: 103.5733931 | S59: 0 | T59: Kg
D60: Numero de varetas | F60: =F59/F40 -> 1426.180242 | G60: =G59/G40 -> 1426.180242 | H60: 2852.360485 | I60: 1426.180242 | J60: 1454.234431 | K60: 1285.909298 | L60: 1586.874935 | M60: 1370.071864 | N60: 1454.234431 | O60: 4363.05744 | P60: 1426.180242 | Q60: 2804.413674 | R60: 2984.824008 | S60: 0 | T60: Unid.
D61: Sobra de eletrodo | F61: =Convencional!F61 -> 4 | G61: =Convencional!G61 -> 4 | H61: =Convencional!H61 -> 4 | I61: =Convencional!I61 -> 4 | J61: =Convencional!J61 -> 4 | K61: =Convencional!K61 -> 4 | L61: =Convencional!L61 -> 4 | M61: =Convencional!M61 -> 4 | N61: =Convencional!N61 -> 4 | O61: =Convencional!O61 -> 4 | P61: =Convencional!P61 -> 4 | Q61: =Convencional!Q61 -> 4 | R61: =Convencional!R61 -> 4 | S61: =Convencional!S61 -> 4 | T61: cm
D62: Peso das sobras | F62: =F40/35*F61*F60 -> 5.655823361 | G62: =G40/35*G61*G60 -> 5.655823361 | H62: 11.31164672 | I62: 5.655823361 | J62: 5.767078259 | K62: 5.099548872 | L62: 6.293092598 | M62: 5.433313565 | N62: 5.767078259 | O62: 17.30263922 | P62: 5.655823361 | Q62: 11.12150337 | R62: 11.83695921 | S62: 0 | T62: Kg
D63: Peso total de eletrodos | F63: =F62+F59 -> 55.14427777 | G63: =G62+G59 -> 55.14427777 | H63: 110.2885555 | I63: 55.14427777 | J63: 56.22901302 | K63: 49.7206015 | L63: 61.35765283 | M63: 52.97480726 | N63: 56.22901302 | O63: 168.7007324 | P63: 55.14427777 | Q63: 108.4346578 | R63: 115.4103523 | S63: 0 | T63: Kg
D64: Tempo de soldagem por soldador | F64: =F59/F39/F43 -> 7.567041958 | G64: =G59/G39/G43 -> 7.567041958 | H64: =H59/H39/H43 -> 15.13408392 | I64: 7.567041958 | J64: 7.715892166 | K64: 6.822790922 | L64: 8.419657527 | M64: 7.269341544 | N64: 7.715892166 | O64: 23.14955553 | P64: 7.567041958 | Q64: 14.87968723 | R64: 15.83691026 | S64: 0 | T64: h
D65: Numero de recargas por soldador | F65: 0 | G65: 0 | H65: 0 | I65: 0 | J65: 0 | K65: 0 | L65: 0 | M65: 0 | N65: 0 | O65: 0 | P65: 0 | Q65: 0 | R65: 0 | S65: 0
D66: Tempo médio para recargas (10 min) | F66: 0 | G66: 0 | H66: 0 | I66: 0 | J66: 0 | K66: 0 | L66: 0 | M66: 0 | N66: 0 | O66: 0 | P66: 0 | Q66: 0 | R66: 0 | S66: 0 | T66: h
D67: Tempo líquido de soldagem por soldador | F67: =F64+F66 -> 7.567041958 | G67: =G64+G66 -> 7.567041958 | H67: 15.13408392 | I67: 7.567041958 | J67: 7.715892166 | K67: 6.822790922 | L67: 8.419657527 | M67: 7.269341544 | N67: 7.715892166 | O67: 23.14955553 | P67: 7.567041958 | Q67: 14.87968723 | R67: 15.83691026 | S67: 0 | T67: h
F68: =F67/8 -> 0.9458802448 | G68: =G67/8 -> 0.9458802448 | H68: 1.89176049 | I68: 0.9458802448 | J68: 0.9644865207 | K68: 0.8528488653 | L68: 1.052457191 | M68: 0.908667693 | N68: 0.9644865207 | O68: 2.893694441 | P68: 0.9458802448 | Q68: 1.859960904 | R68: 1.979613782 | S68: 0 | T68: Dias
D69: Custo de mão de obra | F69: =F45/30*F43*F68 -> 851.2922203 | G69: 851.2922203 | H69: 1702.584441 | I69: 851.2922203 | J69: =J45/30*J43*J68 -> 868.0378686 | K69: =K45/30*K43*K68 -> 767.5639788 | L69: 947.2114718 | M69: 817.8009237 | N69: 868.0378686 | O69: 2604.324997 | P69: 851.2922203 | Q69: 1673.964813 | R69: 1781.652404 | S69: 0 | T69: R$
D70: Custos para tratamento do eletrodo | E70: Secagem | F70: 0 | G70: 0 | H70: 0 | I70: 0 | J70: 0 | K70: 0 | L70: 0 | M70: 0 | N70: 0 | O70: 0 | P70: 0 | Q70: 0 | R70: 0 | S70: 0 | T70: R$
E71: Manutenção | F71: 0 | G71: 0 | H71: 0 | I71: 0 | J71: 0 | K71: 0 | L71: 0 | M71: 0 | N71: 0 | O71: 0 | P71: 0 | Q71: 0 | R71: 0 | S71: 0 | T71: R$
D72: Custo total para tratamento | F72: 0 | G72: 0 | H72: 0 | I72: 0 | J72: 0 | K72: 0 | L72: 0 | M72: 0 | N72: 0 | O72: 0 | P72: 0 | Q72: 0 | R72: 0 | S72: 0 | T72: R$
D73: Numero de cochichos | F73: 0 | G73: 0 | H73: 0 | I73: 0 | J73: 0 | K73: 0 | L73: 0 | M73: 0 | N73: 0 | O73: 0 | P73: 0 | Q73: 0 | R73: 0 | S73: 0 | T73: Unid.
D74: Custo das estufas | F74: 0 | G74: 0 | H74: 0 | I74: 0 | J74: 0 | K74: 0 | L74: 0 | M74: 0 | N74: 0 | O74: 0 | P74: 0 | Q74: 0 | R74: 0 | S74: 0 | T74: R$
D75: Custo dos cochichos | F75: =F49*F73 -> 0 | G75: =G49*G73 -> 0 | H75: 0 | I75: 0 | J75: 0 | K75: 0 | L75: 0 | M75: 0 | N75: 0 | O75: 0 | P75: 0 | Q75: 0 | R75: 0 | S75: 0 | T75: R$
D76: Investimento em estufas e cochichos | F76: =F75+F74 -> 0 | G76: =G75+G74 -> 0 | H76: 0 | I76: 0 | J76: 0 | K76: 0 | L76: 0 | M76: 0 | N76: 0 | O76: 0 | P76: 0 | Q76: 0 | R76: 0 | S76: 0 | T76: R$
D77: Amortização | F77: =F75*0.5/12+F74*0.25/12 -> 0 | G77: =G75*0.5/12+G74*0.25/12 -> 0 | H77: 0 | I77: 0 | J77: 0 | K77: 0 | L77: 0 | M77: 0 | N77: 0 | O77: 0 | P77: 0 | Q77: 0 | R77: 0 | S77: 0 | T77: R$
D78: Custos de energia para soldagem | F78: =(F59/F39*110*24*0.44)/1000 -> 52.73925563 | G78: 52.73925563 | H78: 105.4785113 | I78: 52.73925563 | J78: 53.77668204 | K78: 47.55212361 | L78: 58.6816451 | M78: 50.66440282 | N78: 53.77668204 | O78: 161.3431422 | P78: 52.73925563 | Q78: 103.7054681 | R78: 110.3769297 | S78: =(S59/S39*110*24*0.44)/1000 -> 0 | T78: R$
D79: Custo total dos eletrodos | F79: =F47*F63 -> 661.7313332 | G79: =G47*G63 -> 661.7313332 | H79: 1323.462666 | I79: 661.7313332 | J79: 674.7481563 | K79: 596.647218 | L79: 736.2918339 | M79: 635.6976871 | N79: 674.7481563 | O79: 2024.408788 | P79: 661.7313332 | Q79: 1301.215894 | R79: 1384.924227 | S79: 0
D80: Custo total de soldagem | F80: =F69+F72+F78+F77+F79 -> 1565.762809 | G80: =G69+G72+G78+G77+G79 -> 1565.762809 | H80: 3131.525618 | I80: 1565.762809 | J80: 1596.562707 | K80: 1411.76332 | L80: 1742.184951 | M80: 1504.163014 | N80: 1596.562707 | O80: 4790.076928 | P80: 1565.762809 | Q80: 3078.886176 | R80: 3276.953561 | S80: 0 | T80: R$
D81: Economia | F81: =(Convencional!F80-'H4R - REV'!F80)/'H4R - REV'!F80 -> 0.251413494 | G81: =(Convencional!G80-'H4R - REV'!G80)/'H4R - REV'!G80 -> 0.251413494 | H81: =(Convencional!H80-'H4R - REV'!H80)/'H4R - REV'!H80 -> 0.1472670536 | I81: =(Convencional!I80-'H4R - REV'!I80)/'H4R - REV'!I80 -> 0.251413494 | J81: =(Convencional!J80-'H4R - REV'!J80)/'H4R - REV'!J80 -> 0.2473092522 | K81: =(Convencional!K80-'H4R - REV'!K80)/'H4R - REV'!K80 -> 0.2746794576 | L81: =(Convencional!L80-'H4R - REV'!L80)/'H4R - REV'!L80 -> 0.2299122084 | M81: =(Convencional!M80-'H4R - REV'!M80)/'H4R - REV'!M80 -> 0.2601372067 | N81: =(Convencional!N80-'H4R - REV'!N80)/'H4R - REV'!N80 -> 0.2473092522 | O81: =(Convencional!O80-'H4R - REV'!O80)/'H4R - REV'!O80 -> 0.1144484059 | P81: =(Convencional!P80-'H4R - REV'!P80)/'H4R - REV'!P80 -> 0.251413494 | Q81: =(Convencional!Q80-'H4R - REV'!Q80)/'H4R - REV'!Q80 -> 0.1489725167 | R81: =(Convencional!R80-'H4R - REV'!R80)/'H4R - REV'!R80 -> 0.1428656518 | S81: =(Convencional!S80-'H4R - REV'!S80)/'H4R - REV'!S80 ->  | T81: %

Sheet CAPA
A1: CUSTO DE SOLDAGEM - 2014 | Y1: Opção | Z1: Condição
Y2: 1 | Z2: FALSE | AA2: =IF(Z2=TRUE,Y2,"") -> 
E3: BR H4R | Y3: 2 | Z3: FALSE | AA3: =IF(Z3=TRUE,Y3,"") -> 
Y4: 3 | Z4: FALSE
Y5: 4 | Z5: FALSE
Y6: 5 | Z6: FALSE
Y7: 6 | Z7: FALSE
Y8: 7 | Z8: FALSE
B9: Escolha o tipo de junta clicando no circulo abaixo de cada desenho | Y9: 8 | Z9: FALSE
Y10: 9 | Z10: FALSE
Y11: 10 | Z11: FALSE
Y12: 11 | Z12: FALSE
Y13: 12 | Z13: FALSE
Y14: 13 | Z14: TRUE | AA14: 13
Y15: 14 | Z15: FALSE
Y16: Opção Selecionada | AA16: =SUM(AA2:AA15) -> 13
B19: Dados da Junta | D19: Unidade | E19: Valor
B20: Espessura da chapa | D20: mm | E20: 12
B21: Abertura da raiz | D21: mm | E21: 3
B22: Reforço | D22: mm | E22: 1
B23: Comprimento do cordão | D23: m | E23: 120
B24: Cap pass | D24: cm³
B25: Density | D25: g/cm³
B26: Profundidade da face da raiz | D26: mm
B27: Ângulo superior | D27: °
B28: Angle of bevel | D28: º | E28: 15
B29: Reforço inferior (h2) | D29: mm
B30: Ângulo inferior (α2) | D30: °
B31: Profundidade do chanfro | D31: mm
B32: Penetração | D32: mm | E32: 1
B33: Root radius (R1) | D33: mm
B34: Root radius (R2) | D34: mm
B35: Espessura do cordão (a) | D35: mm
B36: Espessura do cordão (b) | D36: mm
B38: Dados do Eletrodo
B39: Descrição | D39: Unidade | E39: Convencional | F39: BR H4R
B40: Taxa de deposição | D40: Kg/h | E40: 1.09 | F40: 1.09
B41: Peso por vareta | D41: Kg | E41: 0.0372 | F41: 0.0347
B43: Inserir os dados nos campos em amarelo
B44: Dados informados | D44: Unidade | E44: Convencional | F44: BR H4R
B45: N. de soldadores: | E45: 6 | F45: =E45 -> 6
B46: Capacidade dos cochichos | D46: Kg | E46: 2 | F46: 0
B47: Salário Soldador + encargos | D47: R$ | E47: 4500 | F47: =E47 -> 4500
B48: Salario controlador/inspetor + encargos | D48: R$ | E48: 1500 | F48: 0
B49: Custo dos eletrodos R$/Kg | D49: R$ | E49: 8 | F49: 12
B50: Número de estufas | D50: Unid. | E50: 2 | F50: 0
B51: Custos dos cochichos | D51: R$ | E51: 79 | F51: 0
B52: Custos das estufas | D52: R$ | E52: 7695 | F52: 0
B55: Calculado | D55: Unidade | E55: Convencional | F55: BR H4R
B56: Área | D56: cm2 | E56: =OFFSET(Convencional!E53,0,CAPA!$AA$16,1,1) -> 0.8356239781 | F56: =OFFSET('H4R - REV'!E53,0,CAPA!$AA$16,1,1) -> 0.8356239781
B57: Comp | D57: m | E57: =OFFSET(Convencional!E54,0,CAPA!$AA$16,1,1) -> 120 | F57: =OFFSET('H4R - REV'!E54,0,CAPA!$AA$16,1,1) -> 120
B58: Volume | D58: cm3 | E58: =OFFSET(Convencional!E55,0,CAPA!$AA$16,1,1)/1000 -> 10.02748774 | F58: =OFFSET('H4R - REV'!E55,0,CAPA!$AA$16,1,1)/1000 -> 10.02748774
B59: Eficiencia | D59: % | E59: =OFFSET(Convencional!E57,0,CAPA!$AA$16,1,1) -> 70 | F59: =OFFSET('H4R - REV'!E57,0,CAPA!$AA$16,1,1) -> 76
B60: Peso da solda | D60: Kg | E60: =OFFSET(Convencional!E58,0,CAPA!$AA$16,1,1) -> 78.71577874 | F60: =OFFSET('H4R - REV'!E58,0,CAPA!$AA$16,1,1) -> 78.71577874
B61: Consumo de eletrodos | D61: Kg | E61: =OFFSET(Convencional!E59,0,CAPA!$AA$16,1,1) -> 112.4511125 | F61: =OFFSET('H4R - REV'!E59,0,CAPA!$AA$16,1,1) -> 103.5733931
B62: Numero de varetas | D62: Unid. | E62: =OFFSET(Convencional!E60,0,CAPA!$AA$16,1,1) -> 3022.879368 | F62: =OFFSET('H4R - REV'!E60,0,CAPA!$AA$16,1,1) -> 2984.824008
B63: Sobra de eletrodo | D63: cm | E63: =OFFSET(Convencional!E61,0,CAPA!$AA$16,1,1) -> 4 | F63: =OFFSET('H4R - REV'!E61,0,CAPA!$AA$16,1,1) -> 4
B64: Peso das sobras | D64: Kg | E64: =OFFSET(Convencional!E62,0,CAPA!$AA$16,1,1) -> 12.85155571 | F64: =OFFSET('H4R - REV'!E62,0,CAPA!$AA$16,1,1) -> 11.83695921
B65: Peso total de eletrodos | D65: Kg | E65: =OFFSET(Convencional!E63,0,CAPA!$AA$16,1,1) -> 125.3026682 | F65: =OFFSET('H4R - REV'!E63,0,CAPA!$AA$16,1,1) -> 115.4103523
B66: Tempo de soldagem por soldador | D66: h | E66: =OFFSET(Convencional!E64,0,CAPA!$AA$16,1,1) -> 17.19435971 | F66: =OFFSET('H4R - REV'!E64,0,CAPA!$AA$16,1,1) -> 15.83691026
B67: Numero de recargas por soldador | E67: =OFFSET(Convencional!E65,0,CAPA!$AA$16,1,1) -> 9.370926041 | F67: =OFFSET('H4R - REV'!E65,0,CAPA!$AA$16,1,1) -> 0
B68: Tempo médio para recargas (10 min) | D68: h | E68: =OFFSET(Convencional!E66,0,CAPA!$AA$16,1,1) -> 1.561821007 | F68: =OFFSET('H4R - REV'!E66,0,CAPA!$AA$16,1,1) -> 0
B69: Tempo líquido de soldagem por soldador | D69: h | E69: =OFFSET(Convencional!E67,0,CAPA!$AA$16,1,1) -> 18.75618071 | F69: =OFFSET('H4R - REV'!E67,0,CAPA!$AA$16,1,1) -> 15.83691026
D70: Dias | E70: =OFFSET(Convencional!E68,0,CAPA!$AA$16,1,1) -> 2.344522589 | F70: =OFFSET('H4R - REV'!E68,0,CAPA!$AA$16,1,1) -> 1.979613782
B71: Custo de mão de obra | D71: R$ | E71: =OFFSET(Convencional!E69,0,CAPA!$AA$16,1,1) -> 2227.29646 | F71: =OFFSET('H4R - REV'!E69,0,CAPA!$AA$16,1,1) -> 1781.652404
B72: Custos para tratamento do eletrodo | C72: Secagem | D72: R$ | E72: =OFFSET(Convencional!E70,0,CAPA!$AA$16,1,1) -> 2.216636329 | F72: =OFFSET('H4R - REV'!E70,0,CAPA!$AA$16,1,1) -> 0 | G72: (*)
C73: Manutenção | D73: R$ | E73: =OFFSET(Convencional!E71,0,CAPA!$AA$16,1,1) -> 31.18172368 | F73: =OFFSET('H4R - REV'!E71,0,CAPA!$AA$16,1,1) -> 0 | G73: (*)
B74: Custo total para tratamento | D74: R$ | E74: =OFFSET(Convencional!E72,0,CAPA!$AA$16,1,1) -> 33.39836001 | F74: =OFFSET('H4R - REV'!E72,0,CAPA!$AA$16,1,1) -> 0
B75: Numero de cochichos | D75: Unid. | E75: =OFFSET(Convencional!E73,0,CAPA!$AA$16,1,1) -> 6 | F75: =OFFSET('H4R - REV'!E73,0,CAPA!$AA$16,1,1) -> 0
B76: Custo das estufas | D76: R$ | E76: =OFFSET(Convencional!E74,0,CAPA!$AA$16,1,1) -> 15390 | F76: =OFFSET('H4R - REV'!E74,0,CAPA!$AA$16,1,1) -> 0
B77: Custo dos cochichos | D77: R$ | E77: =OFFSET(Convencional!E75,0,CAPA!$AA$16,1,1) -> 474 | F77: =OFFSET('H4R - REV'!E75,0,CAPA!$AA$16,1,1) -> 0
B78: Investimento em estufas e cochichos | D78: R$ | E78: =OFFSET(Convencional!E76,0,CAPA!$AA$16,1,1) -> 15864 | F78: =OFFSET('H4R - REV'!E76,0,CAPA!$AA$16,1,1) -> 0
B79: Amortização | D79: R$ | E79: =OFFSET(Convencional!E77,0,CAPA!$AA$16,1,1) -> 340.375 | F79: =OFFSET('H4R - REV'!E77,0,CAPA!$AA$16,1,1) -> 0
B80: Custos de energia para soldagem | D80: R$ | E80: =OFFSET(Convencional!E78,0,CAPA!$AA$16,1,1) -> 141.626502 | F80: =OFFSET('H4R - REV'!E78,0,CAPA!$AA$16,1,1) -> 110.3769297 | G80: (*)
B81: Custo total dos eletrodos | D81: R$ | E81: =OFFSET(Convencional!E79,0,CAPA!$AA$16,1,1) -> 1002.421346 | F81: =OFFSET('H4R - REV'!E79,0,CAPA!$AA$16,1,1) -> 1384.924227
B82: Custo total de soldagem | D82: R$ | E82: =OFFSET(Convencional!E80,0,CAPA!$AA$16,1,1) -> 3745.117667 | F82: =OFFSET('H4R - REV'!E80,0,CAPA!$AA$16,1,1) -> 3276.953561
D84: Economia | E84: =OFFSET('H4R - REV'!E81,0,CAPA!$AA$16,1,1) -> 0.1428656518
B87: (*) - OBS.: Custo de energia considerando o valor CEMIG para consumo industrial bas R$ 0,44 / KwH

Sheet Plan3 (hidden)
A10: shhet thickness
A11: root gap
A12: depth of root face
A13: groove depth
A14: reinorcemente
A16: seam lenght
A17: penetration
A18: kind of steal
A19: weld prepatation angle
A20: angle of bevel
A21: cap pass
